[Event "European Women-ch 2023"]
[Site "Petrovac"]
[Date "2023.03.23"]
[Round "6.6"]
[White "Gunina, Valentina"]
[Black "Gaponenko, Inna"]
[Result "1/2-1/2"]
[ECO "C13"]
[WhiteElo "2478"]
[BlackElo "2349"]
[Annotator "TA"]
[PlyCount "82"]
[EventDate "2023.03.15"]
[EventType "swiss"]
[EventCountry "MNE"]
[SourceTitle "playchess.com"]
[Source "ChessBase"]
[SourceQuality "1"]
[TimeControl "40/5400+30:1800+30"]

{[%evp 21,82,18,28,20,20,0,4,-12,0,0,0,0,0,0,0,0,0,0,0,0,0,0,-1,-6,0,-8,0,-8,-8,-8,0,0,0,0,8,0,0,0,0,0,0,0,0,0,0,4,6,3,5,0,0,0,0,0,0,0,0,0,0,0,0,0,0]} 1. e4 {[%emt 0:00:06]} e6 {[%emt 0:00:15]} 2. d4 {[%emt 0:00:30]} d5 {[%emt 0:00:05]} 3. Nc3 {[%emt 0:00:05]} Nf6 {[%emt 0:00:12]} 4. Bg5 {[%emt 0:00:36]} dxe4 {[%emt 0:00:37]} 5. Nxe4 {[%emt 0:00:10]} Be7 {[%emt 0:00:28]} 6. Nxf6+ {[%emt 0:05:39]} Bxf6 {[%emt 0:03:43]} 7. Bxf6 {[%emt 0:00:06]} Qxf6 {[%emt 0:00:23]} 8. c3 {[%emt 0:01:04]} O-O {[%emt 0:32:31]} 9. Bd3 {[%emt 0:00:17]} Nd7 {[%emt 0:01:55][%cal Bb8d7,Bd7c5,Bc5d3][%mdl 32]} 10. Nf3 {[%emt 0:00:59]} c5 {[%emt 0:18:16]} 11. O-O {[%emt 0:05:22]} Rd8 {[%emt 0:08:17]} 12. Qc2 {[%emt 0:03:04] C13: French: Classical System: 4 Bg5 Be7, Alekhine-Chatard Attack.} g6 {[%emt 0:00:51] [#] The position is equal.} 13. Rae1 $146 {[%emt 0:06:27]} ({Predecessor:} 13. Be4 Qf4 14. g3 Qc7 15. Rfd1 Nf6 16. Bd3 cxd4 17. Nxd4 e5 18. Nb5 Qc5 19. b4 Qc6 20. Bf1 Bf5 21. Qb3 Ne4 22. Qb2 Ng5 23. Rxd8+ Rxd8 24. Nxa7 Qf3 25. Bg2 Nh3+ 26. Kf1 Rd1+ {0-1 Said,O (1924)-Studer,N (2484) Olympiad-43 Batumi 2018 (1.40)}) 13... cxd4 {[%emt 0:01:31]} 14. Nxd4 {[%emt 0:00:28]} Nc5 {[%emt 0:10:30] [#] Strongly threatening ...e5.} 15. f4 {[%emt 0:00:37]} Nxd3 {[%emt 0:09:19]} ({Don't do} 15... Rxd4 16. cxd4 Qxd4+ 17. Kh1 $16) 16. Qxd3 {[%emt 0:00:05]} b6 {[%emt 0:00:04]} 17. Qg3 {[%emt 0:04:16]} Ba6 {[%emt 0:04:58]} 18. Rf2 {[%emt 0:00:06][%cal Bf1f2,Bf2e2,Be2e5][%mdl 32] Threatens to win with f5.} Rd5 {[%emt 0:00:48]} 19. h3 {[%emt 0:00:46][%cal Bh2h3,Bh3h4,Bh4h5][%mdl 32]} Bb7 {[%emt 0:03:33]} 20. Kh2 {[%emt 0:00:58]} Rad8 {[%emt 0:00:04]} 21. Re5 {[%emt 0:00:49]} Kg7 {[%emt 0:01:23]} 22. h4 {[%emt 0:06:12]} h6 {[%emt 0:00:21]} 23. Rfe2 {[%emt 0:02:06][%cal Rd4e6] [#] Black must now prevent Nxe6+!} R8d7 {[%emt 0:00:30]} 24. Kg1 {[%emt 0:08:39]} Kh7 {[%emt 0:00:19]} 25. a3 {[%emt 0:00:56]} Kg7 {[%emt 0:00:51]} 26. h5 {[%emt 0:08:42]} Rxe5 {[%emt 0:00:16]} 27. Rxe5 {[%emt 0:00:44]} Rd5 {[%emt 0:00:13]} (27... Kh7 {simplifies} 28. hxg6+ Qxg6 29. Qxg6+ Kxg6 30. Re3 h5) 28. b4 {[%emt 0:11:28]} (28. hxg6 {simplifies} Qxg6 29. Qxg6+ Kxg6 30. Rxd5 Bxd5 31. b3) 28... a6 {[%emt 0:01:28]} 29. hxg6 {[%emt 0:08:49]} Qxg6 {[%emt 0:00:02]} 30. Re3 {[%emt 0:00:10]} Qxg3 {[%emt 0:00:49]} 31. Rxg3+ $11 {[%emt 0:00:01][%mdl 4096] Endgame KRB-KRN} Kf8 {[%emt 0:00:09]} 32. Kf2 {[%emt 0:01:02]} e5 {[%emt 0:00:47]} 33. fxe5 {[%emt 0:01:08]} Rxe5 {[%emt 0:00:01]} 34. Rd3 {[%emt 0:01:17]} Ke7 {[%emt 0:00:56]} 35. g4 {[%emt 0:00:40]} h5 {[%emt 0:00:53]} 36. Nf5+ {[%emt 0:03:55]} Kf6 {[%emt 0:00:01]} 37. Nd6 {[%emt 0:01:05]} Bd5 {[%emt 0:00:57]} 38. gxh5 {[%emt 0:08:17]} Rxh5 {[%emt 0:00:01]} 39. c4 {[%emt 0:09:22]} Be6 {[%emt 0:00:09]} 40. c5 {[%emt 0:00:00]} bxc5 {[%emt 0:00:00]} 41. Ne4+ {[%emt 0:05:58]} Ke7 {[%emt 0:04:09] An interesting draw.   Weighted Error Value: White=0.02 (flawless) /Black=0.02 (flawless)} 1/2-1/2

[Event "European Women-ch 2023"]
[Site "Petrovac"]
[Date "2023.03.23"]
[Round "6.6"]
[White "Mamedjarova, Turkan"]
[Black "Bivol, Alina"]
[Result "0-1"]
[ECO "E57"]
[WhiteElo "2229"]
[BlackElo "2365"]
[Annotator "TA"]
[PlyCount "102"]
[EventDate "2023.03.15"]
[EventType "swiss"]
[EventCountry "MNE"]
[SourceTitle "playchess.com"]
[Source "ChessBase"]
[SourceQuality "1"]
[TimeControl "40/5400+30:1800+30"]

{[%evp 20,102,0,0,0,0,0,0,0,0,8,-18,0,-4,0,0,0,0,39,38,45,18,45,0,0,0,0,-30,-8,-55,-48,-202,-212,-308,-175,-178,-183,-186,-183,-175,-178,-164,-163,-224,-224,-218,-115,-114,-104,-134,-80,-99,-91,-85,-31,-50,-39,-49,-39,-162,-173,-229,-211,-207,-206,-279,-114,-142,-70,-56,-21,-65,-67,-184,-177,-319,-343,-383,-375,-369,-348,-1437,-1410,-3807,-2830]} 1. d4 {[%emt 0:00:14]} d5 {[%emt 0:00:14]} 2. c4 {[%emt 0:01:33]} e6 {[%emt 0:00:08]} 3. Nc3 {[%emt 0:00:50]} Nf6 {[%emt 0:00:06]} 4. Bg5 {[%emt 0:02:23]} Be7 {[%emt 0:00:08]} 5. e3 {[%emt 0:01:32]} h6 {[%emt 0:01:16]} 6. Bh4 {[%emt 0:01:22]} dxc4 {[%emt 0:05:21]} 7. Bxc4 {[%emt 0:00:21]} O-O {[%emt 0:00:34]} 8. Nf3 {[%emt 0:01:27]} c5 {[%emt 0:00:08]} 9. O-O {[%emt 0:02:35]} cxd4 {[%emt 0:00:05]} 10. exd4 {[%emt 0:05:20]} Nc6 {[%emt 0:00:36]} 11. a3 {[%emt 0:04:19]} Nh5 {[%emt 0:05:10]} 12. Bxe7 {[%emt 0:03:58]} Nxe7 {[%emt 0:00:06]} 13. Ne5 {[%emt 0:02:36]} Nf6 {[%emt 0:00:31] The position is equal.} 14. Rc1 {[%emt 0:04:47]} b6 {[%emt 0:07:24]} 15. Qf3 {[%emt 0:21:54]} Rb8 {[%emt 0:00:46]} 16. Rfe1 {[%emt 0:00:27]} a6 {[%emt 0:05:55]} 17. Ne4 {[%emt 0:05:19]} Nxe4 {[%emt 0:01:06]} 18. Qxe4 {[%emt 0:00:01]} (18. Rxe4 b5 19. Bb3 Bb7 $17) 18... Qd6 {[%emt 0:04:30]} (18... Bb7 $5 {[%cal Rb7e4]} 19. Qe2 (19. Nxf7 $2 Rxf7 20. Qxe6 Bd5 $19) 19... Rc8 $14) 19. Bd3 {[%emt 0:02:25][%csl Gd3][%cal Re4h7]} f5 $1 {[%emt 0:03:22]} 20. Qh4 {[%emt 0:03:33]} b5 {[%emt 0:11:53]} 21. Qh5 {[%emt 0:04:24]} Bb7 {[%emt 0:04:14]} 22. Bb1 {[%emt 0:03:33]} Qd5 {[%emt 0:08:35][%csl Gb7][%cal Rd5g2]} 23. Nf3 {[%emt 0:01:17]} Rbc8 {[%emt 0:01:44] Threatening ...Rxc1.} (23... Qb3 $5 {[%cal Rb3b2]}) 24. Rcd1 {[%emt 0:00:37]} (24. Qh4 $11 Rxc1 25. Rxc1) 24... Rf6 $15 {[%emt 0:00:28]} 25. Re5 $2 {[%emt 0:00:52]} (25. Re3 $1 $15) 25... Qb3 $19 {[%emt 0:00:48][%csl LRb2,LRd1]} 26. Rde1 {[%emt 0:01:15]} (26. Ne1 {was called for.}) 26... Bd5 {[%emt 0:07:12]} (26... Qxb2 $142 {Threatens to win with ...Ng6.} 27. Bd3 Qxa3) 27. R5e2 {[%emt 0:01:13]} Ng6 {[%emt 0:00:33] Hoping for ...Nf4.} 28. Nd2 {[%emt 0:07:11]} Qa4 {[%emt 0:04:29]} (28... Qxb2 29. Ne4 Qxd4 30. Rd2 $15) 29. g3 {[%emt 0:00:03] Prevents Nf4.} Qxd4 {[%emt 0:00:15]} 30. Nf3 {[%emt 0:00:13]} Qa7 {[%emt 0:02:08]} 31. Ne5 {[%emt 0:00:17]} (31. Rd1 {keeps fighting.}) 31... Nxe5 {[%emt 0:00:26]} 32. Rxe5 {[%emt 0:00:02]} Qb7 {[%emt 0:00:49]} (32... f4 $19 33. g4 Qd4) 33. Qe2 $17 {[%emt 0:02:50]} Kh8 {[%emt 0:03:29] Black is more active.} 34. b4 {[%emt 0:01:39]} Bf3 {[%emt 0:10:24]} ({Black should play} 34... Rc3 35. Re3 Rxe3 36. fxe3 Qb6) 35. Qd2 {[%emt 0:05:17][%cal Ob1a2]} Bh1 {[%emt 0:00:31][%csl Gh1][%cal Rb7g2]} 36. f4 {[%emt 0:00:43]} h5 {[%emt 0:00:42]} (36... Qa8 $17) 37. Ba2 $15 {[%emt 0:01:21]} Be4 {[%emt 0:01:23]} 38. Qd4 {[%emt 0:02:56]} Qe7 {[%emt 0:02:25][%cal Oh5h4]} 39. Qb6 {[%emt 0:02:14] [#]} ({Don't play} 39. R1xe4 Rd8 $17) ({White should try} 39. Bb3 $1 $15) 39... Rc6 $1 $19 {[%emt 0:02:11]} 40. Qd4 {[%emt 0:00:00]} (40. Qe3 $142) 40... Rd6 {[%emt 0:00:00]} ({And not} 40... Rc2 41. Bb3 Rc8 42. R1xe4 fxe4 43. Rxh5+ Kg8 44. Re5 $11 (44. Qxe4 Rc3 $15)) 41. Qc5 {[%emt 0:03:59][%cal Oa2d5]} Qd7 {[%emt 0:04:06][%cal Oh5h4]} 42. Bb3 {[%emt 0:03:39]} Rc6 {[%emt 0:07:50]} (42... Rd2 $19 {( -> ...Rg2+)} 43. R1xe4 fxe4) 43. Qe3 {[%emt 0:01:43]} Qc7 {[%emt 0:00:29]} (43... h4 $17 {...hxg3 is the strong threat.} 44. g4 Rd6) 44. Rc5 $15 {[%emt 0:01:46] [#]} h4 $1 {[%emt 0:02:18][%cal Bh5h4,Bh4h3][%mdl 32]} 45. Rxc6 {[%emt 0:07:04]} (45. g4 Rxc5) 45... Qxc6 {[%emt 0:00:17]} 46. Rc1 {[%emt 0:00:20]} ({Better is} 46. g4 $1 $15) 46... Qb7 $19 {[%emt 0:00:46]} 47. g4 {[%emt 0:02:55]} (47. Rc3 $142) 47... fxg4 {[%emt 0:01:59]} 48. Rc5 {[%emt 0:00:11]} h3 {[%emt 0:02:41]} 49. Rh5+ {[%emt 0:07:00]} Kg8 {[%emt 0:01:34]} 50. Re5 {[%emt 0:00:20] [#]} (50. Rc5) 50... Bc2 $1 {[%emt 0:02:55][%csl Gh3][%cal Rb7g2][%mdl 512]} 51. Rd5 {[%emt 0:04:13]} (51. Bd5 exd5) 51... Bxb3 {[%emt 0:00:44] Weighted Error Value: White=0.62/Black=0.22 (precise)} 0-1

[Event "European Women-ch 2023"]
[Site "Petrovac"]
[Date "2023.03.23"]
[Round "6.6"]
[White "Gaboyan, Susanna"]
[Black "Walter, Ema"]
[Result "1-0"]
[ECO "A07"]
[WhiteElo "2160"]
[BlackElo "2048"]
[Annotator "TA"]
[PlyCount "77"]
[EventDate "2023.03.15"]
[EventType "swiss"]
[EventCountry "MNE"]
[SourceTitle "playchess.com"]
[Source "ChessBase"]
[SourceQuality "1"]
[TimeControl "40/5400+30:1800+30"]

{[%evp 12,76,23,0,0,-1,33,5,22,0,9,0,0,0,0,0,-25,0,7,16,26,0,0,0,0,0,76,89,92,92,102,64,56,0,257,261,330,250,405,406,402,316,537,503,633,631,640,645,842,893,1062,1017,1244,1213,1182,1146,29987,29988,29988,29989,29996,29997,29997,29994,29998,29999,29999]} 1. Nf3 {[%emt 0:01:24]} Nf6 {[%emt 0:00:06]} 2. g3 {[%emt 0:00:05]} g6 {[%emt 0:00:04]} 3. Bg2 {[%emt 0:00:06]} Bg7 {[%emt 0:00:05]} 4. O-O {[%emt 0:00:07]} O-O {[%emt 0:00:06]} 5. d3 {[%emt 0:00:13]} d5 {[%emt 0:00:42]} 6. Nbd2 {[%emt 0:00:07][%cal Bb1d2,Bd2c4,Bc4e3,Be3c2][%mdl 32]} d4 {[%emt 0:00:08]} 7. e4 {[%emt 0:01:57]} dxe3 {[%emt 0:00:09]} 8. fxe3 {[%emt 0:00:07]} Nd5 {[%emt 0:00:13]} 9. Nc4 {[%emt 0:01:27]} c5 {[%emt 0:00:18] The position is equal.} 10. e4 {[%emt 0:00:50]} Nc7 {[%emt 0:04:53]} 11. a4 {[%emt 0:03:36]} Be6 {[%emt 0:06:05]} 12. Ne3 {[%emt 0:01:14]} h6 {[%emt 0:01:29]} 13. c3 {[%emt 0:02:43]} Nc6 {[%emt 0:01:06][%cal Bb8c6,Bc6a5,Ba5c4][%mdl 32] Prevents d4.} 14. Nc2 {[%emt 0:00:20]} Na5 {[%emt 0:24:37]} 15. Be3 {[%emt 0:01:49][%cal Bc1e3,Be3c5,Bc5d4][%mdl 32]} Qd7 {[%emt 0:04:56]} 16. Ra3 {[%emt 0:23:34]} (16. Bxc5 Nb3 17. Bd4 Nxa1 18. Bxg7 Kxg7 $17) 16... Rfd8 {[%emt 0:14:47][%cal Oa5c4]} 17. Bxc5 {[%emt 0:00:00]} Nc4 {[%emt 0:01:15][%mdl 64] Double Attack} 18. Rb3 {[%emt 0:00:00]} Qxa4 {[%emt 0:13:13]} (18... Na5 $11 19. Ra3 Qxd3 20. Qxd3 Rxd3) 19. Rb4 $16 {[%emt 0:00:00]} (19. Rxb7 $2 Qc6 20. Nfd4 (20. Rxc7 $2 Qxc7 21. b4 Nb2 $19) 20... Qxb7 $19) 19... Qd7 {[%emt 0:02:41] [#]} 20. Bd4 $1 {[%emt 0:00:00] aiming for Bxg7.} (20. Rxc4 Bxc4 21. Bd4 Bb3 22. Bxg7 Kxg7 $17) (20. Rxb7 $2 Qc6 21. Nfd4 (21. Rxc7 $2 Qxc7 22. Bd4 Nxb2 $19) 21... Qxb7 $19) 20... a5 {[%emt 0:02:32]} 21. Rxb7 {[%emt 0:03:52]} (21. Rxc4 {feels hotter.} Bxc4 22. Bxg7 Qxd3 23. Bd4) 21... Qc6 {[%emt 0:02:15]} 22. Rb3 {[%emt 0:02:20]} ({Don't play} 22. Rxc7 Qxc7 23. dxc4 Bxc4 $11) ({White should play} 22. Bxg7 $1 $14 Qxb7 23. Bd4 Nxb2 24. Qd2) 22... a4 $2 {[%emt 0:02:47][%mdl 8192] Black is on the road to losing.} (22... Qa4 $1 $11 23. Rb7 Qc6) 23. Rb4 $18 {[%emt 0:00:16] Black must now prevent Bxg7.} Na6 {[%emt 0:01:11]} 24. dxc4 {[%emt 0:00:54]} ({Not} 24. Rxc4 Bxc4 25. dxc4 e5 $16) 24... Bxc4 $2 {[%emt 0:02:29] [#]} (24... Nxb4 25. Nxb4 Qxc4) 25. Rxc4 $1 {[%emt 0:02:31]} Qxc4 {[%emt 0:00:01]} 26. Qc1 {[%emt 0:01:34]} f6 $2 {[%emt 0:01:42]} (26... Rac8 {keeps fighting.} 27. Bxg7 Kxg7) 27. e5 {[%emt 0:00:54]} Rab8 {[%emt 0:02:09]} 28. exf6 {[%emt 0:00:41]} exf6 {[%emt 0:00:15]} 29. Nh4 {[%emt 0:01:57][%csl LRf6,LRg6][%cal Bf3h4,Bh4g6,Bg6e7,Be7f5,Bf5g7][%mdl 32]} Qb5 {[%emt 0:05:24]} 30. Nxg6 {[%emt 0:00:46]} Rd7 {[%emt 0:02:09] Dodges Ne7+} 31. Qe3 {[%emt 0:01:19]} Rf7 {[%emt 0:03:10]} 32. Ne7+ {[%emt 0:01:10]} Kf8 {[%emt 0:00:33]} 33. Nf5 {[%emt 0:00:21] Nxg7 would be deadly.} Qxb2 {[%emt 0:00:39]} 34. Nxg7 {[%emt 0:00:34] White mates.} Qxc2 {[%emt 0:01:03]} 35. Qxh6 {[%emt 0:02:11]} Rb2 {[%emt 0:00:54]} 36. Qh8+ {[%emt 0:01:51]} Ke7 {[%emt 0:00:06]} 37. Re1+ {[%emt 0:01:34]} Kd6 {[%emt 0:00:10]} 38. Qd8+ {[%emt 0:00:11]} Rd7 {[%emt 0:00:19]} 39. Re6# {[%emt 0:42:46] A superb game by Gaboyan.   Weighted Error Value: White=0.14 (very precise) /Black=0.66} 1-0

[Event "European Women-ch 2023"]
[Site "Petrovac"]
[Date "2023.03.23"]
[Round "6.7"]
[White "Daulyte-Cornette, Deimante"]
[Black "Mammadzada, Gunay"]
[Result "1-0"]
[ECO "B50"]
[WhiteElo "2344"]
[BlackElo "2472"]
[Annotator "TA"]
[PlyCount "37"]
[EventDate "2023.03.15"]
[EventType "swiss"]
[EventCountry "MNE"]
[SourceTitle "playchess.com"]
[Source "ChessBase"]
[SourceQuality "1"]
[TimeControl "40/5400+30:1800+30"]

{[%evp 10,37,11,13,13,14,23,5,18,0,43,70,68,72,45,62,175,159,167,168,161,167,735,755,842,725,736,737,1647,1616]} 1. e4 {[%emt 0:00:03]} c5 {[%emt 0:00:03]} 2. Nf3 {[%emt 0:00:09]} d6 {[%emt 0:00:05]} 3. Bb5+ {[%emt 0:00:08]} Bd7 {[%emt 0:00:24]} 4. Bxd7+ {[%emt 0:00:15]} Nxd7 {[%emt 0:00:04]} 5. c3 {[%emt 0:00:11][%cal Bc2c3,Bc3c4,Bc4c5][%mdl 32]} Ngf6 {[%emt 0:03:05]} 6. Qe2 {[%emt 0:00:12]} e6 {[%emt 0:02:17] B50: Sicilian: 2...d6, Miscellaneous.} 7. d4 $1 {[%emt 0:00:23] 7.d4 is better than 7.0-0.} Be7 {[%emt 0:05:27]} 8. e5 {[%emt 0:00:21]} Nd5 {[%emt 0:02:39] The position is equal.} 9. c4 {[%emt 0:01:16]} N5b6 {[%emt 0:05:57]} 10. exd6 {[%emt 0:02:19]} Bxd6 {[%emt 0:00:51] [#]} 11. b4 $146 {[%emt 0:00:15]} ({Predecessor:} 11. d5 e5 12. Nc3 O-O 13. Ne4 Nc8 14. g4 Bc7 15. Bg5 f6 16. Be3 Nd6 17. Nfd2 Nxe4 18. Nxe4 {1-0 Matlakov,M (2662)-Dardha,D (2612) Titled Tuesday intern op 28th Feb Late blitz 2023 (7)}) 11... cxd4 {[%emt 0:25:47]} 12. c5 {[%emt 0:00:13]} d3 {[%emt 0:13:12]} 13. Qxd3 $18 {[%emt 0:21:56]} Qf6 {[%emt 0:03:06] [#]} 14. Qc3 $36 {[%emt 0:10:23][%mdl 2048] White is in control.} Be7 {[%emt 0:13:23] Threatens to win with ...Nd5.} 15. cxb6 {[%emt 0:02:16]} Bxb4 $2 {[%emt 0:00:25] [#]} (15... Nxb6 16. Bb2 Qxc3+ 17. Bxc3 (17. Nxc3 Bxb4 18. Ke2 f6 $16) 17... Nd5) 16. Qxb4 $1 {[%emt 0:00:27] Black must now prevent Bg5. White is clearly winning.} Qxa1 {[%emt 0:00:33] Black is weak on the dark squares} (16... Ne5 17. Qb5+) 17. bxa7 {[%emt 0:04:17][%mdl 64] Discovered Attack} Rxa7 {[%emt 0:02:35]} 18. O-O {[%emt 0:00:33]} Qf6 {[%emt 0:06:20]} 19. Bg5 {[%emt 0:02:17] Weighted Error Value: White=0.05 (flawless) /Black=0.38} 1-0

[Event "European Women-ch 2023"]
[Site "Petrovac"]
[Date "2023.03.23"]
[Round "6.7"]
[White "Abdulla, Khayala"]
[Black "Tsolakidou, Stavroula"]
[Result "1/2-1/2"]
[ECO "B22"]
[WhiteElo "2221"]
[BlackElo "2358"]
[Annotator "TA"]
[PlyCount "140"]
[EventDate "2023.03.15"]
[EventType "swiss"]
[EventCountry "MNE"]
[SourceTitle "playchess.com"]
[Source "ChessBase"]
[SourceQuality "1"]
[TimeControl "40/5400+30:1800+30"]

{[%evp 9,140,22,29,27,25,16,24,6,0,-6,-16,-7,0,-20,-15,-29,-23,-20,-20,-39,-15,-35,-36,-29,-33,-41,-24,-25,-13,-64,-33,-31,-36,-45,-14,-38,-41,-38,-33,-47,-47,-58,-22,-1,0,0,0,0,0,0,0,0,0,0,0,0,0,0,0,0,0,-32,0,-28,0,0,0,-29,-8,-8,-8,-8,-9,-9,-8,-11,0,0,0,-22,-6,-62,-62,-67,-64,-89,-87,-89,-65,-79,-82,-88,-87,-90,-90,-89,-91,-88,-68,-70,-10,-18,-11,-84,-85,-147,-148,-151,-151,-151,-151,-151,-151,-151,-106,-106,-100,-122,-122,-121,-78,-85,-85,-85,-85,-85,-85,-85,-85,-85,-85,-85,-85]} 1. e4 {[%emt 0:00:09]} c5 {[%emt 0:00:06]} 2. c3 {[%emt 0:00:55]} d5 {[%emt 0:00:28]} 3. exd5 {[%emt 0:00:12]} Nf6 {[%emt 0:00:12]} 4. Bb5+ {[%emt 0:01:25]} Nbd7 {[%emt 0:00:22]} 5. Nf3 {[%emt 0:03:36]} Nxd5 {[%emt 0:02:30]} 6. d4 {[%emt 0:02:41]} e6 {[%emt 0:01:32]} 7. O-O {[%emt 0:03:18]} a6 {[%emt 0:05:18]} 8. Bd3 {[%emt 0:03:55] White has an edge.} Be7 {[%emt 0:04:40]} 9. Nbd2 {[%emt 0:06:04]} O-O {[%emt 0:02:04]} 10. Ne4 {[%emt 0:03:27]} cxd4 {[%emt 0:03:28]} 11. cxd4 {[%emt 0:03:31]} b6 {[%emt 0:04:09]} 12. Bd2 {[%emt 0:01:19]} Bb7 {[%emt 0:01:10]} 13. a3 {[%emt 0:07:45]} N5f6 {[%emt 0:01:36]} 14. Nc3 {[%emt 0:04:39]} b5 {[%emt 0:07:35][%cal Od7c5]} 15. Qe2 {[%emt 0:09:15]} Nb6 {[%emt 0:03:47]} (15... Rc8 {keeps more tension.} 16. Ne5 Nb6 17. Be3 Nfd5) 16. Rad1 {[%emt 0:01:42]} Rc8 {[%emt 0:03:05]} 17. Bg5 {[%emt 0:05:52]} Rc7 {[%emt 0:19:01]} 18. Ne5 {[%emt 0:03:36]} Nbd5 {[%emt 0:05:53]} (18... Nfd5 {is interesting.} 19. Bd2 Bxa3 20. Nxb5 axb5 21. bxa3 Nc3) 19. Nb1 {[%emt 0:06:43]} (19. Bd2 $11) 19... Nd7 {[%emt 0:08:29]} 20. Bd2 {[%emt 0:03:31]} Rc8 {[%emt 0:08:14]} 21. Rc1 {[%emt 0:01:24]} N7f6 {[%emt 0:01:59]} (21... Rxc1 {simplifies} 22. Rxc1 Nxe5 23. dxe5 g6) 22. Rxc8 {[%emt 0:06:51]} Qxc8 {[%emt 0:00:04]} 23. Rc1 {[%emt 0:00:03]} Qa8 {[%emt 0:00:40]} 24. b4 {[%emt 0:05:25]} Bd8 {[%emt 0:01:27]} 25. Be3 {[%emt 0:00:58]} Bb6 {[%emt 0:01:59]} 26. Nd2 {[%emt 0:00:39][%cal Bb1d2,Bd2b3,Bb3c5][%mdl 32]} Rc8 {[%emt 0:01:29]} 27. Nb3 {[%emt 0:01:48]} Nxe3 {[%emt 0:00:58]} 28. Rxc8+ {[%emt 0:04:07]} Qxc8 {[%emt 0:00:04]} 29. Qxe3 {[%emt 0:00:10]} Nd5 {[%emt 0:02:10]} 30. Qf3 {[%emt 0:02:29]} Nf6 {[%emt 0:03:09]} 31. Qe3 {[%emt 0:00:53]} Qd8 {[%emt 0:01:35]} 32. Nc5 {[%emt 0:00:29] A dynamic duo of knights.} Qd5 {[%emt 0:00:19][%csl Gb7][%cal Rd5g2] [#]} 33. f3 {[%emt 0:01:10] Active counter play!} Ba8 {[%emt 0:00:30]} 34. Bc2 {[%emt 0:03:45]} (34. Nxa6 $2 Bxd4 $19) 34... Qd6 {[%emt 0:00:35]} 35. Qf4 {[%emt 0:01:04]} Qc7 {[%emt 0:01:42]} 36. Ned3 {[%emt 0:01:06]} (36. Nxa6 $2 Qxc2 37. Nc5 Qd1+ 38. Kf2 h6 $19) 36... Qd8 {[%emt 0:02:25]} 37. Ne5 {[%emt 0:00:44]} (37. Nxa6 $2 {too greedy.} e5 38. Qh4 e4 $19) 37... Qc7 {[%emt 0:01:03]} 38. Ned3 {[%emt 0:00:32]} (38. Nxa6 $2 {is the wrong capture.} Qxc2 39. Nc5 Qb1+ 40. Kf2 Bc7 $19) 38... a5 {[%emt 0:00:39]} 39. Qxc7 {[%emt 0:01:53]} Bxc7 {[%emt 0:00:04]} 40. bxa5 {[%emt 0:00:00]} Bxa5 {[%emt 0:00:00]} 41. Nb4 {[%emt 0:05:28]} Ne8 {[%emt 0:24:15]} 42. Be4 {[%emt 0:06:57]} Bxe4 {[%emt 0:00:00]} 43. fxe4 $11 {[%emt 0:02:08][%mdl 4096] Endgame KBN-KNN} Nd6 {[%emt 0:00:00]} 44. Kf2 {[%emt 0:02:44]} Bb6 {[%emt 0:00:00]} 45. Kf3 {[%emt 0:01:32]} (45. Ke2 $11) 45... Nc4 $15 {[%emt 0:00:00]} 46. Nc2 {[%emt 0:06:56]} e5 {[%emt 0:00:00][%cal Be6e5,Be5d4][%mdl 32]} 47. Nb3 {[%emt 0:01:18] [#]} exd4 $1 {[%emt 0:00:00]} 48. Ke2 {[%emt 0:00:41]} Kf8 {[%emt 0:00:45]} 49. Kd3 {[%emt 0:01:14]} Ne5+ {[%emt 0:00:51]} 50. Kd2 {[%emt 0:00:04]} d3 {[%emt 0:02:59]} 51. Ne1 {[%emt 0:01:25]} Nc4+ {[%emt 0:00:35]} 52. Kxd3 {[%emt 0:00:05]} Nxa3 {[%emt 0:00:06]} 53. Kc3 {[%emt 0:01:05]} Bc7 {[%emt 0:03:18]} 54. Nf3 {[%emt 0:00:39]} Nc4 {[%emt 0:01:55]} (54... f6 $15) 55. Kb4 $11 {[%emt 0:01:47]} Nd6 {[%emt 0:00:16]} 56. e5 {[%emt 0:00:55]} (56. Nc5 $11) 56... Nc4 $17 {[%emt 0:00:37]} 57. Kxb5 {[%emt 0:00:42]} (57. e6 $142) 57... Nxe5 {[%emt 0:00:08]} 58. Nxe5 {[%emt 0:00:54]} Bxe5 {[%emt 0:00:05] KB-KN} 59. h3 {[%emt 0:00:05]} Ke7 {[%emt 0:00:05]} 60. Kc4 {[%emt 0:00:20]} Kf6 {[%emt 0:00:58]} 61. Kd3 {[%emt 0:00:19]} Kg5 {[%emt 0:01:42]} 62. Ke4 {[%emt 0:00:16] Black is better.} Bc3 {[%emt 0:00:26]} 63. Kf3 {[%emt 0:00:21]} Kh4 {[%emt 0:01:20]} 64. Nc5 {[%emt 0:00:25]} f5 {[%emt 0:00:27]} 65. Nd3 {[%emt 0:01:52]} g5 {[%emt 0:00:27]} 66. Nf2 {[%emt 0:01:05]} Bd4 {[%emt 0:01:10]} 67. g3+ {[%emt 0:00:27]} Kh5 {[%emt 0:00:04]} 68. g4+ {[%emt 0:00:22]} Kg6 {[%emt 0:00:13]} 69. gxf5+ {[%emt 0:00:08]} Kxf5 {[%emt 0:00:04] ( -> ...Bxf2)} 70. Ne4 {[%emt 0:00:38]} h5 {[%emt 0:00:31] Weighted Error Value: White=0.11 (very precise) /Black=0.09 (flawless)} 1/2-1/2